bitfinex-derivatives/quotes_SOLF0:USTF0_20250903
["timestamp","ask_amount","ask_price","bid_price","bid_amount"]
[1756935408731,0.03058406,208.93,208.9,0.5]
[1756935409131,0.03058406,208.93,208.91,0.5]
[1756935409732,7.71058406,208.93,208.91,0.5]
[1756935414635,0.03058406,208.93,208.91,0.5]
[1756935414831,7.71058406,208.93,208.91,0.5]
[1756935415139,7.68,208.92,208.9,2.34703182]
[1756935417841,7.68,208.92,208.9,115.92]
[1756935418143,7.68,208.92,208.9,116.42]
[1756935419747,7.68,208.92,208.9,116.4]
[1756935420846,0.03058406,208.93,208.9,116.4]
[1756935421047,7.68,208.92,208.9,115.9]
[1756935423151,7.68,208.92,208.9,116.4]
[1756935425349,0.03058406,208.93,208.9,115.9]
[1756935425551,7.68,208.92,208.9,116.4]
[1756935427151,0.03058406,208.93,208.9,115.9]
[1756935427540,0.03058406,208.93,208.9,116.4]
[1756935427541,7.68,208.92,208.9,116.4]
[1756935427740,7.68,208.92,208.9,115.9]
[1756935428041,7.68,208.92,208.9,116.4]
[1756935432755,7.68,208.92,208.9,115.9]
[1756935432958,7.95058406,208.93,208.91,0.5]
[1756935437156,0.03058406,208.93,208.91,0.5]
[1756935437357,7.92,208.92,208.91,0.5]
[1756935438554,7.92,208.92,208.9,115.9]
[1756935438855,7.92,208.92,208.9,116.4]
[1756935441960,0.03058406,208.93,208.9,115.9]
[1756935442164,0.03058406,208.93,208.91,0.5]
[1756935442165,7.95058406,208.93,208.91,0.5]
[1756935443763,0.03058406,208.93,208.9,115.9]
[1756935443963,7.92,208.92,208.9,116.4]
[1756935444462,7.92,208.92,208.91,0.5]
[1756935446055,7.92,208.92,208.9,0.5]
[1756935447365,7.92,208.92,208.88,0.0315135]
[1756935447666,0.03058406,208.93,208.88,0.0315135]
[1756935447871,7.92,208.92,208.88,0.0315135]
[1756935453771,0.03058406,208.93,208.88,0.0315135]
[1756935454072,7.92,208.92,208.88,0.0315135]
[1756935455371,0.03058406,208.93,208.88,0.0315135]
[1756935455673,7.92,208.92,208.88,0.0315135]
[1756935466677,3.32122836,208.91,208.88,0.0315135]
[1756935466874,7.59,208.89,208.88,0.0315135]
[1756935467072,7.59,208.88,208.8,1.36336327]
[1756935467278,7.59,208.86,208.81,1.84703182]
[1756935467479,7.59,208.89,208.81,1.84703182]
[1756935467668,7.59,208.87,208.81,1.84703182]
[1756935467872,7.59,208.85,208.81,2.37703182]
[1756935468073,7.59,208.85,208.82,0.53]
[1756935468275,7.59,208.84,208.82,0.53]
[1756935470382,7.62261586,208.85,208.79,0.53]
[1756935476289,3.31611416,208.84,208.74,0.53]
[1756935476489,7.59,208.82,208.72,3.41821668]
[1756935476892,7.59,208.78,208.72,3.41821668]
[1756935477992,7.59,208.78,208.72,0.53]
[1756935478191,7.59,208.78,208.7,0.53]
[1756935478390,7.59,208.78,208.7,3.41821668]
[1756935478791,7.59,208.78,208.7,0.53]
[1756935480295,7.59,208.78,208.7,2.88821668]
[1756935480495,7.59,208.78,208.72,2.88821668]
[1756935480690,7.59,208.78,208.71,0.53]
[1756935480990,0.03526138,208.79,208.74,2.88821668]
[1756935481193,7.59,208.78,208.7,0.53]
[1756935481394,7.59,208.78,208.71,0.53]
[1756935483595,7.59,208.78,208.71,3.41821668]
[1756935483796,7.59,208.78,208.72,4.3102]
[1756935487997,7.59,208.78,208.71,0.53]
[1756935488295,10.47821668,208.78,208.71,0.53]
[1756935488995,10.47821668,208.78,208.7,4.3107]
[1756935489191,10.47821668,208.78,208.67,0.03801243]
[1756935489192,7.59,208.71,208.67,0.03801243]
[1756935489394,2.88821668,208.72,208.67,0.03801243]
[1756935489798,7.59,208.71,208.67,0.03801243]
[1756935491995,7.69,208.71,208.67,0.03801243]
[1756935492300,7.69,208.68,208.57,1.34]
[1756935492504,10.57821668,208.68,208.62,0.83409233]
[1756935492696,10.57821668,208.68,208.61,1.34]
[1756935492903,0.03289257,208.67,208.58,1.34]
[1756935493293,0.03289257,208.67,208.63,4.312]
[1756935493700,0.03289257,208.67,208.64,1.34]
[1756935493900,0.03289257,208.67,208.63,4.312]
[1756935494596,0.03289257,208.67,208.64,1.34]
[1756935494904,0.03289257,208.67,208.62,40.0541523]
[1756935495096,0.03289257,208.67,208.63,1.34]
[1756935495304,7.72289257,208.67,208.63,1.34]
[1756935495901,7.69,208.66,208.63,1.34]
[1756935498101,0.03289257,208.67,208.63,1.34]
[1756935498307,0.03289257,208.67,208.61,1.34]
[1756935499903,0.03289257,208.67,208.63,4.312]
[1756935500108,0.03289257,208.67,208.64,1.34]
[1756935501205,7.72289257,208.67,208.63,4.312]
[1756935501412,7.72289257,208.67,208.64,1.34]
[1756935505714,7.69,208.66,208.64,1.34]
[1756935508711,7.69,208.66,208.61,4.3125]
[1756935508914,7.69,208.66,208.62,1.34]
[1756935509122,7.69,208.66,208.61,4.3125]
[1756935510920,0.03289257,208.67,208.61,4.3125]
[1756935511119,7.72289257,208.67,208.61,5.6525]
[1756935511815,2.88821668,208.66,208.61,4.3125]
[1756935512220,7.69,208.65,208.61,4.3125]
[1756935512419,7.69,208.65,208.61,5.6525]
[1756935512721,2.88821668,208.66,208.61,5.6525]
[1756935512914,7.69,208.66,208.61,1.34]
[1756935513120,7.69,208.66,208.6,119.39420229]
[1756935514823,7.69,208.66,208.6,123.70680229]
[1756935515516,0.03289257,208.67,208.59,183.77207583]
[1756935515721,7.69,208.66,208.59,183.77207583]
[1756935516913,10.57821668,208.66,208.51,1.34]
[1756935517116,10.57821668,208.66,208.53,1.34]
[1756935517417,10.57821668,208.66,208.55,1.34]
[1756935517418,7.69,208.66,208.55,1.34]
[1756935517618,7.72062629,208.62,208.55,5.6538]
[1756935518318,0.03062629,208.62,208.56,1.34]
[1756935518519,7.72062629,208.62,208.58,1.34]
[1756935518817,7.69,208.61,208.58,1.34]
[1756935519217,7.69,208.61,208.57,9.22]
[1756935519416,7.69,208.61,208.58,1.34]
[1756935525127,0.03062629,208.62,208.58,1.34]
[1756935525325,0.03062629,208.62,208.57,9.22]
[1756935525620,0.03062629,208.62,208.57,10.58]
[1756935525819,8.02,208.61,208.57,10.58]
[1756935526521,0.03062629,208.62,208.57,10.58]
[1756935527923,8.02,208.61,208.57,10.58]
[1756935528327,0.03062629,208.62,208.57,10.58]
[1756935528626,8.02,208.61,208.57,10.58]
[1756935528924,0.03062629,208.62,208.57,10.58]
[1756935529229,8.02,208.61,208.57,10.58]
[1756935529822,0.03062629,208.62,208.57,10.58]
[1756935530320,8.02,208.61,208.57,10.58]
[1756935530725,0.03062629,208.62,208.57,10.58]
[1756935530926,8.02,208.61,208.57,10.58]
[1756935531425,1.88363543,208.62,208.57,10.58]
[1756935531824,8.02,208.61,208.57,10.58]
[1756935532420,1.88363543,208.62,208.57,10.58]
[1756935532819,8.02,208.61,208.57,10.58]
[1756935533327,1.88363543,208.62,208.57,10.58]
[1756935533523,8.02,208.61,208.58,1.36]
[1756935533717,8.02,208.61,208.57,9.22]
[1756935534136,1.88363543,208.62,208.57,10.58]
[1756935534522,8.02,208.61,208.57,10.58]
[1756935535122,1.88363543,208.62,208.57,10.58]
[1756935535327,1.85300914,208.6,208.57,10.58]
[1756935535626,8.02,208.59,208.57,9.22]
[1756935535826,1.85300914,208.6,208.57,9.22]
[1756935536132,8.02,208.59,208.57,9.22]
[1756935536424,8.02,208.59,208.57,10.58]
[1756935536622,8.02,208.59,208.57,9.22]
[1756935537628,8.02,208.59,208.57,10.58]
[1756935537825,8.02,208.59,208.51,1.36]
[1756935538031,9.87300914,208.59,208.51,1.36]
[1756935538226,9.87300914,208.59,208.51,2.19452237]
[1756935538427,8.05520938,208.57,208.51,2.19452237]
[1756935538627,0.03520938,208.57,208.54,1.85300914]
[1756935538827,8.02,208.64,208.57,1.36]
[1756935539026,0.03122208,208.58,208.57,1.36]
[1756935539228,8.02,208.64,208.57,119.68]
[1756935539532,0.03472605,208.6,208.57,118.32]
[1756935539928,0.03472605,208.6,208.58,118.34]
[1756935540233,0.03472605,208.6,208.59,1.36]
[1756935541733,0.03472605,208.6,208.58,1.36]
[1756935542137,0.03472605,208.6,208.59,118.36]
[1756935542531,0.03472605,208.6,208.56,1.36]
[1756935542733,8.05472605,208.6,208.57,1.36]
[1756935542931,8.05472605,208.6,208.58,118.34]
[1756935543130,8.05472605,208.6,208.58,119.7]
[1756935543635,8.05472605,208.6,208.58,1.36]
[1756935543836,8.05472605,208.6,208.59,118.38]
[1756935544534,8.05472605,208.6,208.58,1.36]
[1756935544736,8.05472605,208.6,208.59,118.36]
[1756935547036,8.05472605,208.6,208.58,1.36]
[1756935547237,8.05472605,208.6,208.59,118.34]
[1756935548532,8.05472605,208.6,208.55,1.36]
[1756935548739,8.05472605,208.6,208.59,118.26]
[1756935549037,8.05472605,208.6,208.57,1.36]
[1756935549239,8.05472605,208.6,208.58,119.62]
[1756935551941,8.05472605,208.6,208.58,1.36]
[1756935552140,8.05472605,208.6,208.59,118.18]
[1756935552738,8.05472605,208.6,208.59,118.16]
[1756935556942,0.03472605,208.6,208.59,119.54]
[1756935561243,0.03472605,208.6,208.55,4.3138]
[1756935561244,7.97472605,208.6,208.57,1.38]
[1756935561445,0.03472605,208.6,208.58,117.98]
[1756935561645,0.03472605,208.6,208.59,1.38]
[1756935563852,0.03472605,208.6,208.59,119.28]
[1756935564353,7.94,208.59,208.56,119.28]
[1756935564954,7.94,208.59,208.57,1.38]
[1756935565553,7.94,208.59,208.58,117.9]
[1756935567257,9.79300914,208.59,208.53,1.38]
[1756935567453,7.94,208.58,208.53,1.38]
[1756935567652,7.94,208.59,208.54,119.26]
[1756935567858,7.94,208.58,208.55,1.38]
[1756935568356,7.94,208.58,208.56,117.88]
[1756935569160,7.94,208.58,208.55,1.38]
[1756935569161,7.94,208.57,208.51,1.38]
[1756935569362,7.97472605,208.6,208.53,1.38]
[1756935569759,7.94,208.6,208.53,1.38]
[1756935569963,0.0341127,208.59,208.53,1.38]
[1756935574164,0.0341127,208.59,208.54,117.84]
[1756935574369,7.9741127,208.59,208.55,1.38]
[1756935574969,7.9741127,208.59,208.51,1.85300914]
[1756935574970,7.94,208.58,208.51,1.85300914]
[1756935575166,7.94,208.58,208.52,117.82]
[1756935576366,7.94,208.58,208.53,1.38]
[1756935576568,7.94,208.58,208.52,117.82]
[1756935576968,7.94,208.58,208.53,1.38]
[1756935577366,7.94,208.58,208.52,117.82]
[1756935578071,7.94,208.58,208.53,117.76]
[1756935578472,0.0341127,208.59,208.54,1.38]
[1756935578669,7.94,208.58,208.55,21.36]
[1756935578870,0.0341127,208.59,208.55,21.36]
[1756935579077,7.94,208.58,208.55,22.74]
[1756935579572,0.0341127,208.59,208.55,44.72]
[1756935579774,7.94,208.58,208.55,44.72]
[1756935579976,0.0341127,208.59,208.55,44.72]
[1756935580177,0.0341127,208.59,208.55,1.38]
[1756935580378,7.94,208.58,208.55,65.6]
[1756935581474,7.94,208.58,208.51,1.38]
[1756935581680,7.94,208.58,208.54,83.84]
[1756935581870,7.28,208.58,208.54,85.23]
[1756935582070,0.0341127,208.59,208.54,85.23]
[1756935582681,7.28,208.58,208.54,85.23]
[1756935582882,7.28,208.58,208.55,1.39]
[1756935583882,0.0341127,208.59,208.55,1.39]
[1756935584176,7.28,208.58,208.55,1.39]
[1756935584571,7.28,208.58,208.54,83.84]
[1756935584778,7.28,208.58,208.55,1.39]
[1756935585383,0.0341127,208.59,208.55,1.39]
[1756935585684,7.28,208.58,208.55,1.39]
[1756935586583,0.0341127,208.59,208.55,1.39]
[1756935586784,7.28,208.58,208.55,1.39]
[1756935588385,0.0341127,208.59,208.55,1.39]
[1756935588689,7.28,208.58,208.55,1.39]
[1756935591286,7.28,208.58,208.54,1.39]
[1756935591485,7.28,208.58,208.53,97.86]
[1756935591888,7.28,208.58,208.54,1.39]
[1756935592086,0.0341127,208.59,208.53,97.86]
[1756935592283,0.0341127,208.59,208.54,1.39]
[1756935592487,0.0341127,208.59,208.53,97.86]
[1756935592688,10.176115,208.58,208.49,1.39]
[1756935592883,7.28,208.56,208.46,0.68847553]
[1756935593187,3.32223791,208.55,208.47,1.39]
[1756935593391,7.31408509,208.53,208.47,1.39]
[1756935594795,7.28,208.52,208.46,0.68847553]
[1756935595294,7.28,208.52,208.46,118.60847553]
[1756935596194,7.28,208.52,208.46,0.68847553]
[1756935599793,7.28,208.52,208.46,2.07847553]
[1756935600394,0.03408509,208.53,208.47,1.39]
[1756935600895,0.03408509,208.53,208.46,0.68847553]
[1756935600896,0.03408509,208.53,208.48,38.48]
[1756935601689,0.03408509,208.53,208.49,1.39]
[1756935601896,7.31408509,208.53,208.47,1.39]
[1756935602092,7.31408509,208.53,208.48,34.88]
[1756935602295,0.03408509,208.53,208.49,68.02]
[1756935602490,0.03408509,208.53,208.47,1.39]
[1756935602887,7.31408509,208.53,208.49,1.39]
[1756935603092,7.31408509,208.53,208.5,34.76]
[1756935603287,7.28,208.52,208.5,1.39]
[1756935603494,7.28,208.52,208.46,2.07847553]
[1756935603689,7.28,208.52,208.47,69.88]
[1756935604095,7.28,208.52,208.46,2.07847553]
[1756935604297,7.31408509,208.53,208.47,103.63]
[1756935605197,0.03408509,208.53,208.48,1.39]
[1756935606695,0.03408509,208.53,208.48,4.3152]
[1756935606897,0.03408509,208.53,208.49,1.39]
[1756935609299,0.03408509,208.53,208.49,5.705]
[1756935609499,0.03408509,208.53,208.5,1.39]
[1756935610103,0.03408509,208.53,208.51,117.86]
[1756935610299,0.03408509,208.53,208.52,1.39]
[1756935610499,0.03408509,208.53,208.52,119.23]
[1756935611498,0.03408509,208.53,208.49,4.315]
[1756935611698,0.03408509,208.53,208.47,4.3155]
[1756935612000,0.03408509,208.53,208.49,1.39]
[1756935612195,0.03408509,208.53,208.48,117.8]
[1756935612401,0.03408509,208.53,208.49,1.39]
[1756935612596,0.03408509,208.53,208.48,117.8]
[1756935613702,0.03408509,208.53,208.49,1.41]
[1756935613901,0.03408509,208.53,208.48,117.8]
[1756935614298,0.03408509,208.53,208.49,1.41]
[1756935614899,0.03408509,208.53,208.48,117.8]
[1756935615300,0.03408509,208.53,208.49,1.41]
[1756935615505,0.03408509,208.53,208.47,4.3155]
[1756935615703,0.03408509,208.53,208.49,1.41]
[1756935616599,0.03408509,208.53,208.51,1.41]
[1756935616803,0.03408509,208.53,208.52,1.41]
[1756935617005,0.03408509,208.53,208.52,32.07]
[1756935618505,0.03408509,208.53,208.52,1.41]
[1756935618707,0.03408509,208.53,208.52,61.01]
[1756935631724,0.03408509,208.53,208.52,1.41]
[1756935632018,0.03408509,208.53,208.52,118.91]
[1756935632620,0.03408509,208.53,208.52,1.41]
[1756935632820,0.03408509,208.53,208.52,118.89]
[1756935633524,0.03408509,208.53,208.52,1.41]
[1756935633921,0.03408509,208.53,208.52,118.87]
[1756935635927,0.03408509,208.53,208.52,1.41]
[1756935636229,0.03408509,208.53,208.52,118.83]
[1756935636825,0.03408509,208.53,208.52,1.41]
[1756935637222,0.03408509,208.53,208.52,118.89]
[1756935639528,8.04,208.62,208.54,1.41]
[1756935640126,8.04,208.62,208.54,4.306115]
[1756935641725,8.04,208.62,208.54,1.41]
[1756935642028,8.04,208.62,208.56,1.4]
[1756935651437,8.04,208.62,208.57,1.85272498]
[1756935651936,7.57,208.63,208.58,117.2]
[1756935652137,1.85272498,208.64,208.58,117.2]
[1756935652436,3.31565684,208.63,208.58,117.2]
[1756935652631,7.57,208.63,208.58,117.2]
[1756935652835,1.85272498,208.64,208.58,117.2]
[1756935653037,3.31550494,208.63,208.58,117.2]
[1756935653334,7.57,208.63,208.58,117.2]
[1756935653534,1.85272498,208.64,208.58,117.2]
[1756935653734,3.31537718,208.63,208.59,117.14]
[1756935653934,7.57,208.63,208.59,117.14]
[1756935654330,1.85272498,208.64,208.59,117.14]
[1756935654531,7.57,208.62,208.59,117.14]
[1756935654736,7.57,208.63,208.59,117.14]
[1756935655134,1.85272498,208.64,208.59,117.14]
[1756935655436,7.57,208.63,208.59,117.14]
[1756935655637,1.85272498,208.64,208.59,117.14]
[1756935656342,7.57,208.63,208.59,117.14]
[1756935657040,1.85272498,208.64,208.59,117.14]
[1756935657732,7.57,208.63,208.59,117.14]
[1756935657942,1.85272498,208.64,208.59,117.14]
[1756935658241,7.57,208.63,208.59,117.14]
[1756935658441,1.85272498,208.64,208.59,117.14]
[1756935659537,7.57,208.63,208.59,118.54]
[1756935660038,1.85272498,208.64,208.59,118.54]
[1756935661039,7.57,208.63,208.59,118.54]
[1756935661546,1.85272498,208.64,208.59,118.54]
[1756935661841,7.57,208.63,208.59,118.54]
[1756935662044,7.57,208.63,208.59,117.14]
[1756935662246,7.57,208.63,208.6,1.4]
[1756935662747,1.85272498,208.64,208.6,1.4]
[1756935663046,7.57,208.63,208.6,1.4]
[1756935663246,1.85272498,208.64,208.6,1.4]
[1756935663447,7.57,208.63,208.6,1.4]
[1756935663647,1.85272498,208.64,208.6,1.4]
[1756935663836,7.57,208.63,208.6,1.4]
[1756935664041,1.85272498,208.64,208.6,1.4]
[1756935665546,7.57,208.63,208.6,1.4]
[1756935665747,1.85272498,208.64,208.6,1.4]
[1756935666646,7.57,208.63,208.6,1.4]
[1756935666843,1.85272498,208.64,208.6,1.4]
[1756935667244,7.57,208.63,208.6,1.4]
[1756935667642,81.57,208.65,208.62,1.4]
[1756935667848,81.57,208.65,208.61,1.85272498]
[1756935668749,81.57,208.65,208.62,1.4]
[1756935669248,81.57,208.65,208.61,1.85272498]
[1756935669448,81.57,208.65,208.53,8.05249008]
[1756935669449,1.85272498,208.71,208.64,1.4]
[1756935669644,3.31650262,208.7,208.65,116.98]
[1756935669945,3.31650262,208.69,208.65,118.38]
[1756935670145,75.85272498,208.71,208.65,118.38]
[1756935670350,7.57,208.69,208.65,118.38]
[1756935670550,7.57,208.7,208.65,118.38]
[1756935670752,7.57,208.68,208.65,118.38]
[1756935673350,74.0,208.71,208.66,1.38]
[1756935673549,7.28,208.69,208.66,1.38]
[1756935673750,74.0,208.71,208.66,1.38]
[1756935674047,7.28,208.69,208.66,1.38]
[1756935675256,7.28,208.69,208.65,118.83272498]
[1756935675455,74.0,208.71,208.66,118.3]
[1756935675650,7.28,208.69,208.66,118.3]
[1756935676049,7.28,208.7,208.66,118.3]
[1756935676353,74.0,208.71,208.66,118.3]
[1756935676554,7.28,208.69,208.66,118.3]
[1756935677453,7.28,208.69,208.66,116.92]
[1756935677658,7.28,208.69,208.67,1.38]
[1756935680357,7.28,208.7,208.67,1.38]
[1756935680748,74.0,208.71,208.67,1.38]
[1756935680953,7.28,208.7,208.67,1.38]
[1756935681156,74.0,208.71,208.67,1.38]
[1756935681352,7.28,208.7,208.67,1.38]
[1756935682255,7.28,208.7,208.66,116.92]
[1756935682464,7.28,208.7,208.67,1.38]
[1756935682855,74.0,208.71,208.67,1.38]
[1756935683056,7.28,208.7,208.67,1.38]
[1756935683255,7.28,208.76,208.69,3.23272498]
[1756935684758,7.28,208.76,208.71,1.85272498]
[1756935684961,74.0,208.77,208.71,1.85272498]
[1756935685260,81.28,208.77,208.71,3.23272498]
[1756935685662,7.28,208.77,208.71,3.23272498]
[1756935686058,7.28,208.77,208.73,1.85272498]
[1756935686259,7.28,208.77,208.74,1.38]
[1756935687161,7.28,208.77,208.73,119.01272498]
[1756935687961,7.28,208.77,208.74,1.38]
[1756935688154,7.28,208.77,208.75,118.54]
[1756935689561,7.28,208.77,208.74,117.14]
[1756935689762,7.28,208.77,208.7,3.23272498]
[1756935689963,74.0,208.85,208.72,1.85272498]
[1756935690162,7.28,208.79,208.72,1.85272498]
[1756935690860,74.0,208.84,208.71,118.52]
[1756935690861,7.28,208.83,208.74,3.23272498]
[1756935691064,7.28,208.83,208.76,1.85272498]
[1756935692966,75.85272498,208.84,208.77,117.52]
[1756935693165,7.28,208.83,208.74,1.38]
[1756935693367,75.85272498,208.84,208.75,119.35272498]
[1756935693368,1.85272498,208.82,208.75,119.35272498]
[1756935693865,7.28,208.81,208.75,119.35272498]
[1756935704573,7.51,208.82,208.76,1.37]
[1756935705681,1.85272498,208.83,208.77,117.24]
[1756935705880,7.51,208.82,208.77,117.24]
[1756935707079,7.51,208.82,208.75,1.85272498]
[1756935707280,1.85272498,208.83,208.76,117.24]
[1756935707483,7.51,208.82,208.76,117.24]
[1756935712085,1.85272498,208.83,208.76,117.24]
[1756935712384,7.51,208.82,208.77,1.37]
[1756935712685,1.85272498,208.83,208.76,117.24]
[1756935712881,7.51,208.82,208.77,1.37]
[1756935713183,9.36272498,208.83,208.77,1.37]
[1756935713485,7.51,208.83,208.77,1.37]
[1756935714181,7.51,208.83,208.77,118.47]
[1756935714387,3.30532978,208.82,208.77,118.47]
[1756935714686,7.51,208.8,208.77,118.47]
[1756935715086,7.51,208.83,208.77,118.47]
[1756935715288,7.51,208.81,208.78,1.37]
[1756935715587,7.51,208.83,208.78,1.37]
[1756935715788,7.51,208.81,208.78,1.37]
[1756935715982,7.51,208.83,208.78,1.37]
[1756935716287,7.51,208.81,208.78,1.37]
[1756935716587,7.51,208.83,208.77,117.1]
[1756935716786,7.51,208.83,208.78,1.37]
[1756935717987,7.51,208.83,208.77,117.1]
[1756935718382,7.51,208.83,208.78,1.37]
[1756935718589,7.51,208.83,208.77,117.1]
[1756935719688,7.51,208.83,208.78,1.37]
[1756935720091,7.51,208.83,208.77,117.1]
[1756935720892,7.51,208.83,208.78,1.37]
[1756935721088,81.51,208.84,208.78,1.37]
[1756935721287,3.31004681,208.83,208.77,117.1]
[1756935721487,7.51,208.83,208.78,1.37]
[1756935721990,74.0,208.84,208.79,117.02]
[1756935722186,3.31090622,208.83,208.79,118.39]
[1756935722386,7.51,208.82,208.8,1.37]
[1756935724484,202.69767904,208.86,208.8,1.37]
[1756935724794,3.31349584,208.85,208.8,1.37]
[1756935724993,202.69767904,208.86,208.8,1.37]
[1756935725191,3.31487338,208.85,208.8,1.37]
[1756935725391,202.69767904,208.86,208.82,1.37]
[1756935725587,3.31460655,208.85,208.82,1.37]
[1756935725794,202.69767904,208.86,208.83,1.37]
[1756935725988,3.31452544,208.85,208.83,1.37]
[1756935726193,195.18767904,208.86,208.82,1.37]
[1756935726395,195.18767904,208.86,208.81,26.98]
[1756935726590,195.18767904,208.86,208.82,1.37]
[1756935727096,195.18767904,208.86,208.83,1.37]
[1756935727397,195.18767904,208.86,208.82,1.37]
[1756935727799,195.18767904,208.86,208.81,26.98]
[1756935727995,195.18767904,208.86,208.82,1.37]
[1756935728195,195.18767904,208.86,208.81,26.98]
[1756935728397,195.18767904,208.86,208.82,1.37]
[1756935728998,195.18767904,208.86,208.81,26.98]
[1756935729198,195.18767904,208.86,208.82,1.37]
[1756935729698,195.18767904,208.86,208.83,41.06]
[1756935730295,195.18767904,208.86,208.84,1.37]
[1756935730503,195.18767904,208.86,208.83,41.06]
[1756935730702,195.18767904,208.86,208.84,1.37]
[1756935731299,195.18767904,208.86,208.83,41.06]
[1756935731499,195.18767904,208.86,208.84,1.37]
[1756935732900,74.0,208.9,208.84,1.37]
[1756935733106,10.70789084,208.89,208.83,42.43]
[1756935733402,3.31789084,208.88,208.83,42.43]
[1756935733604,7.39,208.89,208.83,42.43]
[1756935733904,10.70720544,208.88,208.84,1.37]
[1756935734103,7.39,208.89,208.84,1.37]
[1756935734300,3.31661485,208.88,208.8,51.54999031]
[1756935734499,10.70661485,208.87,208.8,52.91999031]
[1756935734704,7.39,208.87,208.8,52.91999031]
[1756935736205,7.39,208.89,208.81,64.6]
[1756935736405,3.31623467,208.88,208.81,64.6]
[1756935736601,7.39,208.86,208.81,64.6]
[1756935736815,74.0,208.9,208.81,64.6]
[1756935736999,7.39,208.88,208.81,64.6]
[1756935737199,10.7050937,208.87,208.81,65.97]
[1756935737402,3.3150937,208.86,208.81,64.6]
[1756935737604,7.39,208.85,208.82,1.37]
[1756935737810,7.39,208.89,208.79,1.37]
[1756935738108,7.39,208.87,208.8,79.42]
[1756935738301,3.31501133,208.86,208.8,79.42]
[1756935738501,7.39,208.87,208.8,79.42]
[1756935738702,3.31495249,208.86,208.8,79.42]
[1756935738909,7.39,208.87,208.81,1.37]
[1756935739206,3.31495249,208.86,208.81,1.37]
[1756935739507,7.39,208.87,208.81,1.37]
[1756935739703,10.7049164,208.86,208.8,80.79]
[1756935739905,7.39,208.86,208.8,80.79]
[1756935740403,7.39,208.86,208.8,1.37]
[1756935741208,7.39,208.86,208.8,25.03]
[1756935742508,7.39,208.86,208.8,1.37]
[1756935743007,7.39,208.86,208.8,24.83]
[1756935743307,7.39,208.89,208.8,24.83]
[1756935743509,7.39,208.87,208.8,24.83]
[1756935743699,3.31503917,208.86,208.8,24.83]
[1756935743898,74.0,208.9,208.8,24.83]
[1756935744104,3.31503917,208.89,208.8,24.83]
[1756935744407,7.39,208.87,208.8,24.83]
[1756935744608,3.31503917,208.86,208.8,24.83]
[1756935748510,7.39,208.85,208.8,23.46]
[1756935748809,7.39,208.89,208.81,1.37]
[1756935749009,3.31567261,208.88,208.81,1.37]
[1756935749209,7.39,208.86,208.81,1.37]
[1756935749407,7.39,208.89,208.8,1.37]
[1756935749606,7.39,208.87,208.8,1.37]